{"text_format":"1","workbook":"xlsx","n_sheets":3,"sheets":["PROFI","HOBBY","MULTI"],"not_rendered":{"charts":0,"images":42,"macros":1,"external_links":0,"defined_names":3,"comments":0,"pivot_tables":0},"unopened":[],"bounds":{"document_bytes":16777216,"sheet_cells":100000,"rows_first":2000,"rows_last":500,"rows_between":2000,"halvings":0,"cell_chars":16384,"cell_head_chars":4096},"cells_cut":0,"cells_raw":0,"read":"whole","date_system":"1900"}

{"sheet":"PROFI","index":0,"n_rows":85,"n_cols":22,"rows_kept":85,"cut":false,"hidden":false,"merged":[[0,16,0,21]]}
["poř.","REGISTROVANÍ","1. kolo","2. kolo","3. kolo","4. kolo","5. kolo","6. kolo","7. kolo","8. kolo","9. kolo","10. kolo","CELKEM",null,"R",null,"Přehled jednotlivých kol"]
["1.","K.T. Trans",5,3,5,5,3,5,5,null,null,null,{"$f":"IF(B2=\"\",\"\",SUM(C2:L2))","v":31},null,{"$f":"IFERROR(IF(G15>-1,VLOOKUP(B2,$B$15:$G$24,6,FALSE),\"\"),\"\")","v":0}]
["2.","Petainer A",4,5,4,4,4,4,4,null,null,null,{"$f":"IF(B3=\"\",\"\",SUM(C3:L3))","v":29},null,{"$f":"IFERROR(IF(G16>-1,VLOOKUP(B3,$B$15:$G$24,6,FALSE),\"\"),\"\")","v":0},null,"1.kolo","Celkem","Plné","Dorážka","Chyby","Body"]
["3.","Jiskřičky 65+",3,2,3,3,5,2,3,null,null,null,{"$f":"IF(B4=\"\",\"\",SUM(C4:L4))","v":21},null,0,null,"K.T. Trans",1338,902,436,18,5]
["4.","AMON",1,4,2,2,2,3,2,null,null,null,{"$f":"IF(B5=\"\",\"\",SUM(C5:L5))","v":16},null,0,null,"Petainer A",1233,826,407,20,4]
["5.","Auto Harazin",2,1,0,0,1,0,1,null,null,null,{"$f":"IF(B6=\"\",\"\",SUM(C6:L6))","v":5},null,0,null,"Jiskřičky 65+",1232,891,341,35,3]
["6.","Krásná",0,0,1,1,0,1,0,null,null,null,{"$f":"IF(B7=\"\",\"\",SUM(C7:L7))","v":3},null,0,null,"Auto Harazin",1203,849,354,31,2]
["7.",null,"","","","","","","",null,null,null,{"$f":"IF(B8=\"\",\"\",SUM(C8:L8))","v":""},null,"",null,"AMON",1193,812,381,23,1]
["8.",null,"","","","","","","",null,null,null,"",null,"",null,"Krásná",1069,793,276,47,0]
["9.",null,"","","","","","","",null,null,null,"",null,"",null,null,0]
["10.",null,"","","","","","","",null,null,null,"",null,"",null,null,0]
[null,null,null,null,null,null,null,null,null,null,null,null,null,null,null,null,null,0]
[null,"↓↓↓",null,null,null,null,null,null,null,null,null,null,null,null,null,null,null,0]
[null,"Aktuální kolo","Celkem","Plné","Dorážka","Chyby","Body"]
[null,"K.T. Trans",{"$f":"IF(B15>0,D15+E15,0)","v":0},null,null,null,null,null,null,null,null,null,null,null,null,null,"2.kolo","Celkem","Plné","Dorážka","Chyby","Body"]
[null,"Petainer A",{"$f":"IF(B16>0,D16+E16,0)","v":0},null,null,null,null,null,null,null,null,null,null,null,null,null,"Petainer A",1355,916,439,16,5]
[null,"Jiskřičky 65+",{"$f":"IF(B17>0,D17+E17,0)","v":0},null,null,null,null,null,null,null,null,null,null,null,null,null,"AMON",1293,903,390,33,4]
[null,"AMON",{"$f":"IF(B18>0,D18+E18,0)","v":0},null,null,null,null,null,null,null,null,null,null,null,null,null,"K.T. Trans",1285,888,397,16,3]
[null,"Auto Harazin",{"$f":"IF(B19>0,D19+E19,0)","v":0},null,null,null,null,null,null,null,null,null,null,null,null,null,"Jiskřičky 65+",1177,835,342,29,2]
[null,"Krásná",{"$f":"IF(B20>0,D20+E20,0)","v":0},null,null,null,null,null,null,null,null,null,null,null,null,null,"Auto Harazin",1152,821,331,41,1]
[null,null,{"$f":"IF(B21>0,D21+E21,0)","v":0},null,null,null,null,null,null,null,null,null,null,null,null,null,"Krásná",1120,818,302,40,0]
[null,null,{"$f":"IF(B22>0,D22+E22,0)","v":0},null,null,null,null,null,null,null,null,null,null,null,null,null,null,0]
[null,null,{"$f":"IF(B23>0,D23+E23,0)","v":0},null,null,null,null,null,null,null,null,null,null,null,null,null,null,0]
[null,null,{"$f":"IF(B24>0,D24+E24,0)","v":0},null,null,null,null,null,null,null,null,null,null,null,null,null,null,0]
[null,null,null,null,null,null,null,null,null,null,null,null,null,null,null,null,null,0]
[]
[null,null,null,null,null,null,null,null,null,null,null,null,null,null,null,null,"3.kolo","Celkem","Plné","Dorážka","Chyby","Body"]
[null,null,null,null,null,null,null,null,null,null,null,null,null,null,null,null,"K.T. Trans",1311,877,434,19,5]
[null,null,null,null,null,null,null,null,null,null,null,null,null,null,null,null,"Petainer A",1310,881,429,13,4]
[null,null,null,null,null,null,null,null,null,null,null,null,null,null,null,null,"Jiskřičky 65+",1290,925,365,22,3]
[null,null,null,null,null,null,null,null,null,null,null,null,null,null,null,null,"AMON",1251,865,386,19,2]
[null,null,null,null,null,null,null,null,null,null,null,null,null,null,null,null,"Krásná",1149,827,322,45,1]
[null,null,null,null,null,null,null,null,null,null,null,null,null,null,null,null,"Auto Harazin",1140,823,317,41,0]
[null,null,null,null,null,null,null,null,null,null,null,null,null,null,null,null,null,0]
[null,null,null,null,null,null,null,null,null,null,null,null,null,null,null,null,null,0]
[null,null,null,null,null,null,null,null,null,null,null,null,null,null,null,null,null,0]
[null,null,null,null,null,null,null,null,null,null,null,null,null,null,null,null,null,0]
[]
[null,null,null,null,null,null,null,null,null,null,null,null,null,null,null,null,"4.kolo","Celkem","Plné","Dorážka","Chyby","Body"]
[null,null,null,null,null,null,null,null,null,null,null,null,null,null,null,null,"K.T. Trans",1317,899,418,9,5]
[null,null,null,null,null,null,null,null,null,null,null,null,null,null,null,null,"Petainer A",1258,882,376,12,4]
[null,null,null,null,null,null,null,null,null,null,null,null,null,null,null,null,"Jiskřičky 65+",1252,871,381,17,3]
[null,null,null,null,null,null,null,null,null,null,null,null,null,null,null,null,"AMON",1164,826,338,36,2]
[null,null,null,null,null,null,null,null,null,null,null,null,null,null,null,null,"Krásná",1132,800,332,32,1]
[null,null,null,null,null,null,null,null,null,null,null,null,null,null,null,null,"Auto Harazin",1105,816,289,42,0]
[null,null,null,null,null,null,null,null,null,null,null,null,null,null,null,null,null,0]
[null,null,null,null,null,null,null,null,null,null,null,null,null,null,null,null,null,0]
[null,null,null,null,null,null,null,null,null,null,null,null,null,null,null,null,null,0]
[null,null,null,null,null,null,null,null,null,null,null,null,null,null,null,null,null,0]
[]
[null,null,null,null,null,null,null,null,null,null,null,null,null,null,null,null,"5.kolo","Celkem","Plné","Dorážka","Chyby","Body"]
[null,null,null,null,null,null,null,null,null,null,null,null,null,null,null,null,"Jiskřičky 65+",1341,944,397,17,5]
[null,null,null,null,null,null,null,null,null,null,null,null,null,null,null,null,"Petainer A",1323,898,425,22,4]
[null,null,null,null,null,null,null,null,null,null,null,null,null,null,null,null,"K.T. Trans",1300,932,368,18,3]
[null,null,null,null,null,null,null,null,null,null,null,null,null,null,null,null,"AMON",1289,901,388,15,2]
[null,null,null,null,null,null,null,null,null,null,null,null,null,null,null,null,"Auto Harazin",1139,839,300,48,1]
[null,null,null,null,null,null,null,null,null,null,null,null,null,null,null,null,"Krásná",1120,817,303,44,0]
[null,null,null,null,null,null,null,null,null,null,null,null,null,null,null,null,null,0]
[null,null,null,null,null,null,null,null,null,null,null,null,null,null,null,null,null,0]
[null,null,null,null,null,null,null,null,null,null,null,null,null,null,null,null,null,0]
[null,null,null,null,null,null,null,null,null,null,null,null,null,null,null,null,null,0]
[]
[null,null,null,null,null,null,null,null,null,null,null,null,null,null,null,null,"6.kolo","Celkem","Plné","Dorážka","Chyby","Body"]
[null,null,null,null,null,null,null,null,null,null,null,null,null,null,null,null,"K.T. Trans",1329,879,450,9,5]
[null,null,null,null,null,null,null,null,null,null,null,null,null,null,null,null,"Petainer A",1300,864,436,14,4]
[null,null,null,null,null,null,null,null,null,null,null,null,null,null,null,null,"AMON",1279,881,398,18,3]
[null,null,null,null,null,null,null,null,null,null,null,null,null,null,null,null,"Jiskřičky 65+",1222,840,382,20,2]
[null,null,null,null,null,null,null,null,null,null,null,null,null,null,null,null,"Krásná",1140,800,340,29,1]
[null,null,null,null,null,null,null,null,null,null,null,null,null,null,null,null,"Auto Harazin",1108,830,278,35,0]
[null,null,null,null,null,null,null,null,null,null,null,null,null,null,null,null,null,0]
[null,null,null,null,null,null,null,null,null,null,null,null,null,null,null,null,null,0]
[null,null,null,null,null,null,null,null,null,null,null,null,null,null,null,null,null,0]
[null,null,null,null,null,null,null,null,null,null,null,null,null,null,null,null,null,0]
[]
[null,null,null,null,null,null,null,null,null,null,null,null,null,null,null,null,"7.kolo","Celkem","Plné","Dorážka","Chyby","Body"]
[null,null,null,null,null,null,null,null,null,null,null,null,null,null,null,null,"K.T. Trans",1336,893,443,11,5]
[null,null,null,null,null,null,null,null,null,null,null,null,null,null,null,null,"Petainer A",1309,906,403,13,4]
[null,null,null,null,null,null,null,null,null,null,null,null,null,null,null,null,"Jiskřičky 65+",1300,897,403,15,3]
[null,null,null,null,null,null,null,null,null,null,null,null,null,null,null,null,"AMON",1280,882,398,26,2]
[null,null,null,null,null,null,null,null,null,null,null,null,null,null,null,null,"Auto Harazin",1165,832,333,37,1]
[null,null,null,null,null,null,null,null,null,null,null,null,null,null,null,null,"Krásná",0,null,null,0,0]
[null,null,null,null,null,null,null,null,null,null,null,null,null,null,null,null,null,0]
[null,null,null,null,null,null,null,null,null,null,null,null,null,null,null,null,null,0]
[null,null,null,null,null,null,null,null,null,null,null,null,null,null,null,null,null,0]
[null,null,null,null,null,null,null,null,null,null,null,null,null,null,null,null,null,0]

{"sheet":"HOBBY","index":1,"n_rows":85,"n_cols":22,"rows_kept":85,"cut":false,"hidden":false,"merged":[[0,16,0,21]]}
["poř.","NEREGISTROVANÍ","1. kolo","2. kolo","3. kolo","4. kolo","5. kolo","6. kolo","7. kolo","8. kolo","9. kolo","10. kolo","CELKEM"," ","R",null,"Přehled jednotlivých kol"]
["1.","Petainer B",4,5,5,5,5,5,0,null,null,null,{"$f":"IF(B2=\"\",\"\",SUM(C2:L2))","v":29},null,{"$f":"IFERROR(IF(G15>-1,VLOOKUP(B2,$B$15:$G$24,6,FALSE),\"\"),\"\")","v":0}]
["2.","Omladina Hazlov",5,4,4,3,4,3,3,null,null,null,{"$f":"IF(B3=\"\",\"\",SUM(C3:L3))","v":26},null,{"$f":"IFERROR(IF(G16>-1,VLOOKUP(B3,$B$15:$G$24,6,FALSE),\"\"),\"\")","v":0},null,"1.kolo","Celkem","Plné","Dorážka","Chyby","Body"]
["3.","Půjčovna",3,3,2,2,3,2,4,null,null,null,{"$f":"IF(B4=\"\",\"\",SUM(C4:L4))","v":19},null,0,null,"Omladina Hazlov",1142,812,330,37,5]
["4.","DUPO",2,2,1,1,2,4,5,null,null,null,{"$f":"IF(B5=\"\",\"\",SUM(C5:L5))","v":17},null,0,null,"Petainer B",1072,797,275,56,4]
["5.","H.G.Decor",1,1,3,4,1,1,2,null,null,null,{"$f":"IF(B6=\"\",\"\",SUM(C6:L6))","v":13},null,0,null,"Půjčovna",1049,752,297,40,3]
["6.","ROBOTI",0,0,0,0,0,0,1,null,null,null,{"$f":"IF(B7=\"\",\"\",SUM(C7:L7))","v":1},null,0,null,"DUPO",1018,776,242,59,2]
["7.",null,"","","","","","","",null,null,null,{"$f":"IF(B8=\"\",\"\",SUM(C8:L8))","v":""},null,"",null,"H.G.Decor",956,707,249,69,1]
["8.",null,"","","","","","","",null,null,null,"",null,"",null,"ROBOTI",899,647,252,78,0]
["9.",null,"","","","","","","",null,null,null,{"$f":"IF(B10=\"\",\"\",SUM(C10:L10))","v":""},null,"",null,null,0]
["10.",null,"","","","","","","",null,null,null,"",null,"",null,null,0]
[null,null,null,null,null,null,null,null,null,null,null,null,null,null,null,null,null,0]
[null,"↓↓↓",null,null,null,null,null,null,null,null,null,null,null,null,null,null,null,0]
[null,"Aktuální kolo","Celkem","Plné","Dorážka","Chyby","Body"]
[null,"Petainer B",{"$f":"IF(B15>0,D15+E15,0)","v":0},null,null,null,null,null,null,null,null,null,null,null,null,null,"2.kolo","Celkem","Plné","Dorážka","Chyby","Body"]
[null,"Omladina Hazlov",{"$f":"IF(B16>0,D16+E16,0)","v":0},null,null,null,null,null,null,null,null,null,null,null,null,null,"Petainer B",1133,805,328,32,5]
[null,"Půjčovna",{"$f":"IF(B17>0,D17+E17,0)","v":0},null,null,null,null,null,null,null,null,null,null,null,null,null,"Omladina Hazlov",1061,797,264,55,4]
[null,"DUPO",{"$f":"IF(B18>0,D18+E18,0)","v":0},null,null,null,null,null,null,null,null,null,null,null,null,null,"Půjčovna",1016,745,271,56,3]
[null,"H.G.Decor",{"$f":"IF(B19>0,D19+E19,0)","v":0},null,null,null,null,null,null,null,null,null,null,null,null,null,"DUPO",1006,725,281,57,2]
[null,"ROBOTI",{"$f":"IF(B20>0,D20+E20,0)","v":0},null,null,null,null,null,null,null,null,null,null,null,null,null,"H.G.Decor",934,677,257,67,1]
[null,null,{"$f":"IF(B21>0,D21+E21,0)","v":0},null,null,null,null,null,null,null,null,null,null,null,null,null,"ROBOTI",870,609,261,92,0]
[null,null,{"$f":"IF(B22>0,D22+E22,0)","v":0},null,null,null,null,null,null,null,null,null,null,null,null,null,null,0]
[null,null,{"$f":"IF(B23>0,D23+E23,0)","v":0},null,null,null,null,null,null,null,null,null,null,null,null,null,null,0]
[null,null,{"$f":"IF(B24>0,D24+E24,0)","v":0},null,null,null,null,null,null,null,null,null,null,null,null,null,null,0]
[null,null,null,null,null,null,null,null,null,null,null,null,null,null,null,null,null,0]
[]
[null,null,null,null,null,null,null,null,null,null,null,null,null,null,null,null,"3.kolo","Celkem","Plné","Dorážka","Chyby","Body"]
[null,null,null,null,null,null,null,null,null,null,null,null,null,null,null,null,"Petainer B",1186,838,348,33,5]
[null,null,null,null,null,null,null,null,null,null,null,null,null,null,null,null,"Omladina Hazlov",1037,772,265,53,4]
[null,null,null,null,null,null,null,null,null,null,null,null,null,null,null,null,"H.G.Decor",1012,752,260,64,3]
[null,null,null,null,null,null,null,null,null,null,null,null,null,null,null,null,"Půjčovna",1011,766,245,59,2]
[null,null,null,null,null,null,null,null,null,null,null,null,null,null,null,null,"DUPO",997,729,268,57,1]
[null,null,null,null,null,null,null,null,null,null,null,null,null,null,null,null,"ROBOTI",959,700,259,74,0]
[null,null,null,null,null,null,null,null,null,null,null,null,null,null,null,null,null,0]
[null,null,null,null,null,null,null,null,null,null,null,null,null,null,null,null,null,0]
[null,null,null,null,null,null,null,null,null,null,null,null,null,null,null,null,null,0]
[null,null,null,null,null,null,null,null,null,null,null,null,null,null,null,null,null,0]
[]
[null,null,null,null,null,null,null,null,null,null,null,null,null,null,null,null,"4.kolo","Celkem","Plné","Dorážka","Chyby","Body"]
[null,null,null,null,null,null,null,null,null,null,null,null,null,null,null,null,"Petainer B",1176,817,359,33,5]
[null,null,null,null,null,null,null,null,null,null,null,null,null,null,null,null,"H.G.Decor",1042,738,304,48,4]
[null,null,null,null,null,null,null,null,null,null,null,null,null,null,null,null,"Omladina Hazlov",1040,770,270,54,3]
[null,null,null,null,null,null,null,null,null,null,null,null,null,null,null,null,"Půjčovna",999,761,238,56,2]
[null,null,null,null,null,null,null,null,null,null,null,null,null,null,null,null,"DUPO",997,770,227,61,1]
[null,null,null,null,null,null,null,null,null,null,null,null,null,null,null,null,"ROBOTI",973,675,298,50,0]
[null,null,null,null,null,null,null,null,null,null,null,null,null,null,null,null,null,0]
[null,null,null,null,null,null,null,null,null,null,null,null,null,null,null,null,null,0]
[null,null,null,null,null,null,null,null,null,null,null,null,null,null,null,null,null,0]
[null,null,null,null,null,null,null,null,null,null,null,null,null,null,null,null,null,0]
[]
[null,null,null,null,null,null,null,null,null,null,null,null,null,null,null,null,"5.kolo","Celkem","Plné","Dorážka","Chyby","Body"]
[null,null,null,null,null,null,null,null,null,null,null,null,null,null,null,null,"Petainer B",1132,830,302,36,5]
[null,null,null,null,null,null,null,null,null,null,null,null,null,null,null,null,"Omladina Hazlov",1094,781,313,46,4]
[null,null,null,null,null,null,null,null,null,null,null,null,null,null,null,null,"Půjčovna",1071,797,274,41,3]
[null,null,null,null,null,null,null,null,null,null,null,null,null,null,null,null,"DUPO",995,748,247,48,2]
[null,null,null,null,null,null,null,null,null,null,null,null,null,null,null,null,"H.G.Decor",958,694,264,60,1]
[null,null,null,null,null,null,null,null,null,null,null,null,null,null,null,null,"ROBOTI",866,632,234,91,0]
[null,null,null,null,null,null,null,null,null,null,null,null,null,null,null,null,null,0]
[null,null,null,null,null,null,null,null,null,null,null,null,null,null,null,null,null,0]
[null,null,null,null,null,null,null,null,null,null,null,null,null,null,null,null,null,0]
[null,null,null,null,null,null,null,null,null,null,null,null,null,null,null,null,null,0]
[]
[null,null,null,null,null,null,null,null,null,null,null,null,null,null,null,null,"6.kolo","Celkem","Plné","Dorážka","Chyby","Body"]
[null,null,null,null,null,null,null,null,null,null,null,null,null,null,null,null,"Petainer B",1134,814,320,32,5]
[null,null,null,null,null,null,null,null,null,null,null,null,null,null,null,null,"DUPO",1022,738,284,46,4]
[null,null,null,null,null,null,null,null,null,null,null,null,null,null,null,null,"Omladina Hazlov",1011,750,261,47,3]
[null,null,null,null,null,null,null,null,null,null,null,null,null,null,null,null,"Půjčovna",980,717,263,48,2]
[null,null,null,null,null,null,null,null,null,null,null,null,null,null,null,null,"H.G.Decor",933,708,225,73,1]
[null,null,null,null,null,null,null,null,null,null,null,null,null,null,null,null,"ROBOTI",917,647,270,77,0]
[null,null,null,null,null,null,null,null,null,null,null,null,null,null,null,null,null,0]
[null,null,null,null,null,null,null,null,null,null,null,null,null,null,null,null,null,0]
[null,null,null,null,null,null,null,null,null,null,null,null,null,null,null,null,null,0]
[null,null,null,null,null,null,null,null,null,null,null,null,null,null,null,null,null,0]
[]
[null,null,null,null,null,null,null,null,null,null,null,null,null,null,null,null,"7.kolo","Celkem","Plné","Dorážka","Chyby","Body"]
[null,null,null,null,null,null,null,null,null,null,null,null,null,null,null,null,"DUPO",1143,817,326,37,5]
[null,null,null,null,null,null,null,null,null,null,null,null,null,null,null,null,"Půjčovna",1114,815,299,41,4]
[null,null,null,null,null,null,null,null,null,null,null,null,null,null,null,null,"Omladina Hazlov",1071,768,303,35,3]
[null,null,null,null,null,null,null,null,null,null,null,null,null,null,null,null,"H.G.Decor",1053,802,251,45,2]
[null,null,null,null,null,null,null,null,null,null,null,null,null,null,null,null,"ROBOTI",1049,745,304,58,1]
[null,null,null,null,null,null,null,null,null,null,null,null,null,null,null,null,"Petainer B",1042,749,293,53,0]
[null,null,null,null,null,null,null,null,null,null,null,null,null,null,null,null,null,0]
[null,null,null,null,null,null,null,null,null,null,null,null,null,null,null,null,null,0]
[null,null,null,null,null,null,null,null,null,null,null,null,null,null,null,null,null,0]
[null,null,null,null,null,null,null,null,null,null,null,null,null,null,null,null,null,0]

{"sheet":"MULTI","index":2,"n_rows":44,"n_cols":26,"rows_kept":44,"cut":false,"hidden":false,"merged":[[0,25,0,30]]}
["poř.","VŠECHNY týmy","1. kolo","2. kolo","3. kolo","4. kolo","5. kolo","6. kolo","7. kolo","8. kolo","9. kolo","10. kolo","11. kolo","12. kolo","13. kolo","14. kolo","15. kolo","16. kolo","17. kolo","18. kolo","19. kolo","CELKEM"," ","R",null,"Přehled jednotlivých kol"]
["1.",null,null,null,null,null,null,null,null,null,null,null,null,null,null,null,null,null,null,null,null,{"$f":"IF(B2=\"\",\"\",SUM(C2:U2))","v":""},null,{"$f":"IFERROR(IF(G25>-1,VLOOKUP(B2,$B$25:$G$44,6,FALSE),\"\"),\"\")","v":""}]
["2.",null,null,null,null,null,null,null,null,null,null,null,null,null,null,null,null,null,null,null,null,"",null,{"$f":"IFERROR(IF(G26>-1,VLOOKUP(B3,$B$25:$G$44,6,FALSE),\"\"),\"\")","v":""}]
["3.",null,null,null,null,null,null,null,null,null,null,null,null,null,null,null,null,null,null,null,null,"",null,""]
["4.",null,null,null,null,null,null,null,null,null,null,null,null,null,null,null,null,null,null,null,null,"",null,""]
["5.",null,null,null,null,null,null,null,null,null,null,null,null,null,null,null,null,null,null,null,null,"",null,""]
["6.",null,null,null,null,null,null,null,null,null,null,null,null,null,null,null,null,null,null,null,null,"",null,""]
["7.",null,null,null,null,null,null,null,null,null,null,null,null,null,null,null,null,null,null,null,null,"",null,""]
["8.",null,null,null,null,null,null,null,null,null,null,null,null,null,null,null,null,null,null,null,null,"",null,""]
["9.",null,null,null,null,null,null,null,null,null,null,null,null,null,null,null,null,null,null,null,null,"",null,""]
["10.",null,null,null,null,null,null,null,null,null,null,null,null,null,null,null,null,null,null,null,null,"",null,""]
["11.",null,null,null,null,null,null,null,null,null,null,null,null,null,null,null,null,null,null,null,null,"",null,""]
["12.",null,null,null,null,null,null,null,null,null,null,null,null,null,null,null,null,null,null,null,null,"",null,""]
["13.",null,null,null,null,null,null,null,null,null,null,null,null,null,null,null,null,null,null,null,null,{"$f":"IF(B14=\"\",\"\",SUM(C14:U14))","v":""},null,""]
["14.",null,null,null,null,null,null,null,null,null,null,null,null,null,null,null,null,null,null,null,null,"",null,""]
["15.",null,null,null,null,null,null,null,null,null,null,null,null,null,null,null,null,null,null,null,null,"",null,""]
["16.",null,null,null,null,null,null,null,null,null,null,null,null,null,null,null,null,null,null,null,null,"",null,""]
["17.",null,null,null,null,null,null,null,null,null,null,null,null,null,null,null,null,null,null,null,null,"",null,""]
["18.",null,null,null,null,null,null,null,null,null,null,null,null,null,null,null,null,null,null,null,null,"",null,""]
["19.",null,null,null,null,null,null,null,null,null,null,null,null,null,null,null,null,null,null,null,null,"",null,""]
["20.",null,null,null,null,null,null,null,null,null,null,null,null,null,null,null,null,null,null,null,null,{"$f":"IF(B21=\"\",\"\",SUM(C21:U21))","v":""},null,""]
[null,"Tým 8"]
[null,"↓↓↓"]
[null,"Aktuální kolo","Celkem","Plné","Dorážka","Chyby","Body"]
[null,null,{"$f":"IF(B25>0,D25+E25,0)","v":0}]
[null,null,0]
[null,null,0]
[null,null,0]
[null,null,0]
[null,null,0]
[null,null,0]
[null,null,0]
[null,null,0]
[null,null,0]
[null,null,0]
[null,null,0]
[null,null,0]
[null,null,0]
[null,null,0]
[null,null,0]
[null,null,{"$f":"IF(B41>0,D41+E41,0)","v":0}]
[null,null,0]
[null,null,0]
[null,null,0]